Cogmind - Beta 14 @@@ ROGUE MODE // 2024.12.21 @ 18:22:49 Player: 7604 Result: Self-destructed Performance ------------- Evolutions (8) 4000 Regions Visited (30) 6000 Robots Destroyed (154) 770 Value Destroyed (5399) 5399 Prototype IDs (69) 1380 Alien Tech Used (2) 400 Bonus (5572) 5572 TOTAL SCORE: 23521 Bonus ------- Triggered Max Security 1000 High Alert Combat Kills 1034 Follower Combat Kills 2533 Network Hubs Disabled 400 Aligned with FarCom 300 Met Data Miner 300 Met Zhirov 300 Built Enhanced Grunts 300 Friendly Fire -595 Cogmind --------- Core Integrity 1259/1450 Matter 15/300 Energy 144/150 System Corruption 2% Temperature Cool (17) Movement Flying (112) Ox1 Location -2/Testing Parts ------- > --- POWER (1) -------- Micro Antimatter Reactor > --- PROPULSION (7) --- Xenon Bombardment Thruster Impulse Thruster Array Experimental Q-thruster > --- UTILITY (13) ----- Large Storage Unit Advanced Visual Processing Unit Improved Terrain Scanner Armor Integrity Analyzer ECM Suite Centrium Medium Armor Plating Improved System Shield > --- WEAPON (2) ------- Heavy Pick > --- INVENTORY (15) --- Hybrid Deuterium Engine Backup Power VII Improved VTOL Module Diametric Drive Faulty Improved Diametric Drive Faulty Improved Q-thruster Improved Q-thruster Advanced Signal Interpreter Transmission Jammer Advanced Variable Charge Gun Hardcell Cannon Heavy Gauss Cannon Ragnarok Missile Launcher Advanced Datajack Improved Plasma Cutter Peak State ------------ > --- POWER ------------ Backup Power VII > --- PROPULSION ------- Impulse Thruster Impulse Thruster Flying Fortress v7 Improved Q-thruster > --- UTILITY ---------- Advanced Heat Sink Large Storage Unit Improved Terrain Scanner Armor Integrity Analyzer ECM Suite Centrium Medium Armor Plating Medium Regenerative Plating Improved Hacking Suite Improved Hacking Suite Advanced Hacking Suite Improved System Shield > --- WEAPON ----------- Hardcell Cannon Heavy Pick > --- INVENTORY -------- Hybrid Deuterium Engine Micro Antimatter Reactor Micro Antimatter Reactor Improved VTOL Module Impulse Thruster Impulse Thruster Array Transmission Jammer Advanced Variable Charge Gun Heavy Gauss Cannon Rocket Launcher Advanced Datajack Improved Plasma Cutter Power Sword [Rating: 134] Favorites ----------- Power Hybrid Deuterium Engine Engine Hybrid Deuterium Engine Power Core Light Nuclear Core Reactor Reinforced Antimatter Reactor Propulsion Improved Treads Treads Improved Treads Leg Carbon-fiber Leg Wheel Compact Wheel Flight Unit Improved VTOL Module Utility Large Storage Unit Device Structural Scanner Storage Large Storage Unit Processor Machine Analyzer Hackware Advanced Hacking Suite Protection Heavy Insulated Plating Weapon Medium Laser Energy Gun Medium Laser Energy Cannon Beam Cannon Ballistic Cannon Heavy Gauss Cannon Launcher Rocket Launcher Special Weapon Plasma Cutter Impact Weapon Powered Hammer Slashing Weapon Power Sword Piercing Weapon Heavy Pick Special Melee Weapon Advanced Datajack Build | -11 -10 -10 -10 -9 -8 -7 -7 -7 -7 -7 -7 -6 -6 -6 -6 -6 -5 -5 -5 -5 -5 -4 -4 -4 -4 -4 -4 -3 -2 -2 ------- Run | Yrd Mat Min Exi Min Mat Fac Was Fac Low Low Dat Pro Fac Low Low Zio Pro Fac Upp Upp Zhi Pro Fac Ext Cet Arc Hub Res Res Tes Slots Evolved 16 | . . . . . 4 2 . . . . . . 2 . . . . 2 . . . . 2 . . . . 2 2 . Power . | . . . . . . . . . . . . . . . . . . . . . . . . . . . . . . . Propulsion 5 | . . . . . 2 1 . . . . . . 1 . . . . . . . . . . . . . . 1 . . Utility 11 | . . . . . 2 1 . . . . . . 1 . . . . 2 . . . . 2 . . . . 1 2 . Weapon . | . . . . . . . . . . . . . . . . . . . . . . . . . . . . . . . Parts Attached 246 | 6 10 2 . 11 58 10 1 4 . 4 1 1 7 2 . 6 . 16 . . 1 3 21 33 6 2 6 18 15 2 Power 21 | 1 2 . . 2 4 1 . 1 . . . . . . . . . . . . . . 1 3 . . 1 2 3 . Engine 9 | 1 2 . . 1 1 1 . 1 . . . . . . . . . . . . . . 1 . . . 1 . . . Core 4 | . . . . 1 3 . . . . . . . . . . . . . . . . . . . . . . . . . Reactor 8 | . . . . . . . . . . . . . . . . . . . . . . . . 3 . . . 2 3 . Propulsion 69 | 2 1 2 . 2 28 1 . . . . . . 1 . . . . 1 . . . . 3 14 1 . 3 2 7 1 Treads 29 | 2 1 . . . 16 . . . . . . . . . . . . . . . . . . 9 1 . . . . . Leg 7 | . . . . . 7 . . . . . . . . . . . . . . . . . . . . . . . . . Wheel 5 | . . 2 . 2 1 . . . . . . . . . . . . . . . . . . . . . . . . . Hover . | . . . . . . . . . . . . . . . . . . . . . . . . . . . . . . . Flight 28 | . . . . . 4 1 . . . . . . 1 . . . . 1 . . . . 3 5 . . 3 2 7 1 Utility 92 | 1 4 . . 1 10 7 1 3 . 2 . 1 5 . . 4 . 14 . . 1 . 14 8 3 . 1 10 1 1 Device 51 | . 2 . . 1 3 2 1 . . 2 . 1 1 . . 4 . 9 . . . . 11 3 2 . . 9 . . Storage 5 | 1 2 . . . 1 . . . . . . . 1 . . . . . . . . . . . . . . . . . Processor 4 | . . . . . 1 . . . . . . . . . . . . . . . . . 1 . . . . 1 1 . Hackware 7 | . . . . . 1 . . 1 . . . . 1 . . . . 2 . . . . 1 . . . 1 . . . Protection 25 | . . . . . 4 5 . 2 . . . . 2 . . . . 3 . . 1 . 1 5 1 . . . . 1 Artifact . | . . . . . . . . . . . . . . . . . . . . . . . . . . . . . . . Weapon 64 | 2 3 . . 6 16 1 . . . 2 1 . 1 2 . 2 . 1 . . . 3 3 8 2 2 1 4 4 . Energy Gun 16 | 2 1 . . 2 8 . . . . 1 . . . . . . . . . . . . . . 1 . . . 1 . Energy Cannon 17 | . 2 . . 3 3 . . . . 1 1 . . . . . . 1 . . . 1 2 2 1 . . . . . Ballistic Gun . | . . . . . . . . . . . . . . . . . . . . . . . . . . . . . . . Ballistic Cannon 7 | . . . . . . . . . . . . . . . . . . . . . . . . 4 . 1 . 2 . . Launcher 12 | . . . . 1 4 . . . . . . . . 1 . . . . . . . 1 1 2 . . . . 2 . Special Weapon 2 | . . . . . 1 . . . . . . . . . . 1 . . . . . . . . . . . . . . Impact Weapon 1 | . . . . . . 1 . . . . . . . . . . . . . . . . . . . . . . . . Slashing Weapon 4 | . . . . . . . . . . . . . 1 1 . 1 . . . . . 1 . . . . . . . . Piercing Weapon 3 | . . . . . . . . . . . . . . . . . . . . . . . . . . . 1 1 1 . Special Melee Weapon 2 | . . . . . . . . . . . . . . . . . . . . . . . . . . 1 . 1 . . Unidentified Prototypes 12 | . . . . . 3 . . . . . . . . . . 1 . . . . 1 . . 1 3 . . . 2 1 Parts Lost 40 | . 1 1 . 5 8 . . . . . . . . . . . . . . . . . 4 3 4 . . 3 9 2 Power 5 | . 1 . . 2 1 . . . . . . . . . . . . . . . . . . . . . . . 1 . Propulsion 17 | . . 1 . 2 5 . . . . . . . . . . . . . . . . . 1 2 1 . . . 4 1 Utility 15 | . . . . . 1 . . . . . . . . . . . . . . . . . 3 1 2 . . 3 4 1 Weapon 3 | . . . . 1 1 . . . . . . . . . . . . . . . . . . . 1 . . . . . Highest Loss Streak 9 | . 1 1 . 2 3 . . . . . . . . . . . . . . . . . 1 1 4 . . 2 9 2 To Critical Strikes 2 | . . . . 1 . . . . . . . . . . . . . . . . . . . . . . . . 1 . Average Slot Usage (%) 83 | . 91 89 71 92 96 76 76 75 76 75 70 76 74 73 73 72 73 75 76 76 76 76 75 79 86 89 86 82 76 58 Engine 5 | . 13 14 14 10 2 6 7 6 7 7 7 7 6 6 6 6 6 5 5 5 5 5 4 . . . 1 . . . Core 1 | . . . . 2 6 . . . . . . . . . . . . . . . . . . . . . . . 1 . Reactor 1 | . . . . . . . . . . . . . . . . . . . . . . . . 4 5 5 3 3 2 4 Treads 11 | . 20 7 . . 22 . . . . . . . . . . . . . . . . . . 20 20 21 14 . . . Leg 1 | . . . . . 6 . . . . . . . . . . . . . . . . . . . . . . . . . Wheel 2 | . . 10 28 21 4 . . . . . . . . . . . . . . . . . . . . . . . . . Flight 6 | . . . . . . 15 15 15 15 15 15 15 20 20 20 20 20 17 17 17 17 17 14 . . . 5 17 18 16 Device 9 | . 13 14 14 14 10 15 15 10 7 7 7 7 6 6 6 5 6 5 5 5 5 5 7 4 8 10 6 10 12 8 Storage 7 | . 14 14 14 14 9 7 7 7 7 7 7 7 6 6 6 6 6 5 5 5 5 5 5 5 5 5 5 4 4 4 Processor 3 | . . . . . 6 . . . . . . . . . . . . . . . . . 4 5 5 5 5 3 6 8 Hackware 10 | . . . . . 1 7 7 7 7 7 7 7 13 13 13 13 13 17 17 17 17 17 21 21 15 15 19 19 16 7 Protection 6 | . . . . . 6 7 7 11 15 15 15 15 7 6 6 6 6 10 11 11 11 11 5 6 13 15 15 11 5 3 Energy Gun 7 | . 25 . . 11 15 12 7 7 7 5 . . . . . . . . . . . . . . 3 5 5 . . . Energy Cannon 3 | . 2 28 . 15 2 . . . . 1 1 7 6 6 6 6 6 4 5 5 5 5 4 1 1 . . . . . Ballistic Cannon 1 | . . . . . . . . . . . . . . . . . . . . . . . . 7 5 4 3 2 3 . Slashing Weapon 1 | . . . . . . . . . . . . . 5 5 6 5 6 5 5 5 5 4 5 1 . . . . . . Peak Build Rating 134 | 6 8 9 10 17 57 63 65 65 64 65 65 65 79 79 79 91 79 93 93 93 95 96 111 122 121 121 120 132 134 100 Average Rating 66 | 4 7 7 8 14 30 62 63 63 64 64 60 65 76 78 78 78 79 88 93 93 93 94 105 107 111 120 117 126 117 96 On Entrance 70 | . 6 7 9 10 13 55 63 65 64 64 65 65 65 79 79 79 79 79 93 93 93 95 95 106 100 121 120 113 131 80 Naked Turns . | . . . . . . . . . . . . . . . . . . . . . . . . . . . . . . . Heaviest Build 101 | 13 92 92 86 92 101 43 43 43 43 48 48 49 54 55 54 54 54 57 57 57 57 58 58 95 88 85 85 68 60 41 Greatest Support 200 | 40 40 32 32 32 92 55 55 55 55 55 55 55 60 60 60 60 60 60 59 59 59 59 59 173 200 200 200 68 68 44 Greatest Overweight (x) 31 | . 4 30 2 5 31 . . . . . . . . . . . . . . . . . 1 1 . . . . 1 . Average Overweight (x) . | . 1 2 2 3 1 . . . . . . . . . . . . . . . . . . . . . . . . . Largest Inventory Capacity 25 | 8 25 25 25 25 25 15 15 15 15 15 15 15 15 15 15 15 15 15 15 15 15 15 15 15 15 15 15 15 15 15 Average Capacity 18 | 6 17 25 25 25 24 15 15 15 15 15 15 15 15 15 15 15 15 15 15 15 15 15 15 15 15 15 15 15 15 15 Most Carried 25 | 2 15 18 25 24 25 15 15 15 14 15 15 15 15 15 15 15 15 15 15 15 15 15 15 15 15 15 15 15 15 15 Average Carried 16 | 1 10 16 22 21 23 14 15 14 14 14 15 15 14 15 14 15 15 14 15 15 14 15 14 14 14 14 12 12 14 13 Final Capacity 25 | 8 25 25 25 25 15 15 15 15 15 15 15 15 15 15 15 15 15 15 15 15 15 15 15 15 15 15 15 15 15 15 Final Carried 24 | 2 15 18 24 21 15 15 15 14 14 15 15 15 15 15 15 15 15 15 15 15 15 15 15 15 15 15 9 15 14 15 Class Distribution -------------------- 37% | Mutant 23% | Hacker-Mutant 12% | Hacker-Sprinter 9% | Scavenger-Mutant 5% | Hacker-Ninja 4% | Hacker-Skirmisher 3% | Skirmisher Dominant Class ---------------- Mutant | -10/Materials Mutant | -10/Mines Mutant | -10/Exiles Mutant | -9/Mines Scavenger-Mutant | -8/Materials Mutant | -7/Factory Mutant | -7/Waste Mutant | -7/Factory Mutant | -7/Lower Caves Mutant | -7/Lower Caves Mutant | -7/Data Miner Mutant | -6/Proximity Caves Hacker-Mutant | -6/Factory Hacker-Mutant | -6/Lower Caves Hacker-Mutant | -6/Lower Caves Hacker-Mutant | -6/Zion Hacker-Mutant | -5/Proximity Caves Hacker-Sprinter | -5/Factory Hacker-Sprinter | -5/Upper Caves Hacker-Sprinter | -5/Upper Caves Hacker-Sprinter | -5/Zhirov Hacker-Sprinter | -4/Proximity Caves Hacker-Sprinter | -4/Factory Hacker-Mutant | -4/Extension Hacker-Skirmisher | -4/Cetus Hacker-Skirmisher | -4/Archives Hacker-Mutant | -4/Hub_04(d) Hacker-Sprinter | -3/Research Hacker-Ninja | -2/Research Hacker-Ninja | -2/Testing Resources | -11 -10 -10 -10 -9 -8 -7 -7 -7 -7 -7 -7 -6 -6 -6 -6 -6 -5 -5 -5 -5 -5 -4 -4 -4 -4 -4 -4 -3 -2 -2 ----------- Run | Yrd Mat Min Exi Min Mat Fac Was Fac Low Low Dat Pro Fac Low Low Zio Pro Fac Upp Upp Zhi Pro Fac Ext Cet Arc Hub Res Res Tes Matter Collected 4320 | 228 175 71 . 166 673 70 60 20 33 20 . 55 60 33 38 63 . . 65 95 . 27 260 1358 136 132 24 145 313 . Remotely . | . . . . . . . . . . . . . . . . . . . . . . . . . . . . . . . Salvage Created 5660 | . 504 248 . 146 1946 49 . 36 . . . . 33 34 . . . . . . . 23 88 1566 153 356 . 99 379 . Parts 277 | . 46 7 . 7 96 1 . 4 . . . . 4 3 . . . . . . . 1 7 44 5 19 . 15 18 . Haulers Intercepted 7 | . 2 . . . 4 1 . . . . . . . . . . . . . . . . . . . . . . . . Recyclers Shooed 4 | . 2 . . . 1 . . . . . . . . . . . . . . . . . . 1 . . . . . . Parts Field Recycled . | . . . . . . . . . . . . . . . . . . . . . . . . . . . . . . . Retrieved Matter . | . . . . . . . . . . . . . . . . . . . . . . . . . . . . . . . Parts Self-Destructed 5 | . . . . . . . . . . . . . . 1 . . . . 3 . . 1 . . . . . . . . Prevented . | . . . . . . . . . . . . . . . . . . . . . . . . . . . . . . . Kills | -11 -10 -10 -10 -9 -8 -7 -7 -7 -7 -7 -7 -6 -6 -6 -6 -6 -5 -5 -5 -5 -5 -4 -4 -4 -4 -4 -4 -3 -2 -2 ------- Run | Yrd Mat Min Exi Min Mat Fac Was Fac Low Low Dat Pro Fac Low Low Zio Pro Fac Upp Upp Zhi Pro Fac Ext Cet Arc Hub Res Res Tes Combat Hostiles Destroyed 97 | . 14 4 . 8 32 . . . . . . . . 3 . . . . . . . 2 5 19 4 1 . . 5 . Guns 26 | . 14 . . . 12 . . . . . . . . . . . . . . . . . . . . . . . . . Cannons 39 | . . 4 . 5 9 . . . . . . . . . . . . . . . . . . 16 4 1 . . . . AOE 31 | . . . . 3 10 . . . . . . . . 3 . . . . . . . 2 5 3 . . . . 5 . Classes Destroyed 19 | . 6 1 . 1 4 . . . . . . . . . . . . . . . . . . 5 . . . 1 1 . Worker 3 | . . . . . 1 . . . . . . . . . . . . . . . . . . . . . . 2 . . Builder 9 | . 2 . . . 2 . . . . . . . . . . . . . . . . . . 1 . . . 3 1 . Tunneler 1 | . . . . . . . . . . . . . . . . . . . . . . . . . . . . 1 . . Hauler 7 | . 2 . . . 4 1 . . . . . . . . . . . . . . . . . . . . . . . . Recycler 10 | . . 1 . . 4 . . . . . . . . . . . . . . . . . . 3 . . . . 2 . Carrier 1 | . . . . . . . . . . . . . . . . . . . . . . . . 1 . . . . . . Mechanic 1 | . . . . . . . . . . . . . . . . . . . . . . . . 1 . . . . . . Operator 12 | . 2 . . . 1 . . . . . . . . . . . . . . . . . . 1 . 8 . . . . Watcher 14 | . 2 . . . 5 . . 1 . . . . 1 . . . . . . . . . 1 2 1 . . . 1 . Swarmer 35 | . 11 . . 4 3 . . . . . . . . 3 . . . . . . . 2 5 3 . . . . 4 . Grunt 35 | . 3 4 . 2 20 . . . . . . . . . . . . . . . . . . 6 . . . . . . Brawler 2 | . . . . . . . . . . . . . . . . . . . . . . . . 2 . . . . . . Duelist 3 | . . . . . 2 . . . . . . . . . . . . . . . . . . 1 . . . . . . Protector 3 | . . . . . 1 . . . . . . . . . . . . . . . . . . 2 . . . . . . Sentry 8 | . . . . . 6 . . . . . . . . . . . . . . . . . . 1 . 1 . . . . Hunter 3 | . . . . . . . . . . . . . . . . . . . . . . . . 3 . . . . . . Programmer 1 | . . . . . . . . . . . . . . . . . . . . . . . . . . . . . 1 . Behemoth 1 | . . . . . . . . . . . . . . . . . . . . . . . . 1 . . . . . . Cetus Guard 4 | . . . . . . . . . . . . . . . . . . . . . . . . . 4 . . . . . Assembled 2 | . . . . 2 . . . . . . . . . . . . . . . . . . . . . . . . . . Thug 1 | . . . . . . . . . . . . . . . . . . . . . . . . 1 . . . . . . Best Kill Streak 7 | . 5 2 . 4 7 1 . 1 . . . . 1 3 . . . . . . . 2 5 4 3 2 . 2 6 . Combat Bots Only 5 | . 5 2 . 4 5 . . . . . . . . 3 . . . . . . . 2 5 3 3 1 . . 5 . Max Kills in Single Turn 5 | . 1 1 . 2 2 1 . 1 . . . . 1 1 . . . . . . . 1 5 2 1 1 . 1 2 . Gunslinging . | . . . . . . . . . . . . . . . . . . . . . . . . . . . . . . . Exploded 5 | . . . . 2 2 . . . . . . . . 1 . . . . . . . 1 5 2 . . . . 2 . Melee . | . . . . . . . . . . . . . . . . . . . . . . . . . . . . . . . Uniques/NPCs Destroyed . | . . . . . . . . . . . . . . . . . . . . . . . . . . . . . . . Combat | -11 -10 -10 -10 -9 -8 -7 -7 -7 -7 -7 -7 -6 -6 -6 -6 -6 -5 -5 -5 -5 -5 -4 -4 -4 -4 -4 -4 -3 -2 -2 -------- Run | Yrd Mat Min Exi Min Mat Fac Was Fac Low Low Dat Pro Fac Low Low Zio Pro Fac Upp Upp Zhi Pro Fac Ext Cet Arc Hub Res Res Tes Hostile Shots Fired 878 | . 63 12 . 49 134 7 . 37 . 2 . 32 29 3 17 . 3 37 6 11 . 13 62 94 53 4 17 99 82 12 Missed 348 | . 13 4 . 11 26 3 . 24 . . . 18 20 1 8 . 2 16 5 6 . 8 36 32 11 1 12 56 29 6 Damage Taken 9802 | . 422 99 . 514 1670 88 . 84 . 28 . 224 277 42 80 . 18 251 . 33 . 70 747 1490 1159 102 155 786 1305 158 Core 945 | . 47 10 . 142 167 . . 27 . . . 14 10 . 33 . . 34 . . . 26 46 69 106 . 23 . 164 27 Absorbed by Shields 343 | . . . . . . . . . . . . . . . . . . 26 . . . . . 317 . . . . . . Reduced by Siege Mode 98 | . . . . . . . . . . . . . . . . . . . . . . . . 11 87 . . . . . Redirected to Shielding 258 | . . . . . . . . 9 . 9 . 23 6 . . . . 58 . 21 . 8 72 . 52 . . . . . Ignored by Resistances 19 | . . . . . . . . . . . . . . . . . . . . . . 12 . 7 . . . . . . Regen/Repaired (Parts) 1925 | . . . . . . 57 . 125 . . . . 243 . . 300 . 199 . . . . 187 180 187 33 . 142 272 . Core Remaining (%) 79 | 100 . . . 20 69 . . . . . . 94 . . . . 94 . . . . 94 . . . . 78 90 . . Volleys Fired 494 | . 64 12 . 22 117 8 . . . 6 . 2 5 13 2 . . 1 . . . 3 16 97 22 65 9 23 7 . Largest 2 | . 2 2 . 2 2 2 . . . 1 . 1 1 1 1 . . 1 . . . 1 1 2 2 2 2 1 1 . Hottest 240 | . 100 120 . 120 131 110 . . . 85 . 85 85 85 85 . . 85 . . . 33 98 127 166 141 141 65 240 . Shots Fired 774 | . 126 24 . 40 221 16 . . . 6 . 2 5 13 2 . . 1 . . . 3 16 146 44 67 11 24 7 . Gun 379 | . 126 . . . 167 16 . . . . . . . . . . . . . . . . . . . 60 9 . 1 . Cannon 359 | . . 24 . 38 41 . . . . 6 . 2 5 9 2 . . 1 . . . . 14 140 44 7 2 24 . . Launcher 36 | . . . . 2 13 . . . . . . . . 4 . . . . . . . 3 2 6 . . . . 6 . Special . | . . . . . . . . . . . . . . . . . . . . . . . . . . . . . . . Kinetic 189 | . . . . . . . . . . . . . . . . . . . . . . . . 133 23 7 2 24 . . Thermal 549 | . 126 24 . 38 208 16 . . . 6 . 2 5 9 2 . . 1 . . . . 14 7 21 60 9 . 1 . Explosive 36 | . . . . 2 13 . . . . . . . . 4 . . . . . . . 3 2 6 . . . . 6 . Electromagnetic . | . . . . . . . . . . . . . . . . . . . . . . . . . . . . . . . Robot Hit Streak 17 | . 4 6 . 13 10 6 . . . . . . . 2 . . . . . . . 2 3 14 17 9 2 2 6 . Robot Miss Streak 7 | . 5 4 . 3 3 3 . . . . . . 3 . . . . . . . . 1 2 3 2 7 3 1 1 . Penetration Max 1 | . . . . . . . . . . . . . . . . . . . . . . . . 1 1 . . . . . Secondary Targets 1 | . 1 . . . . . . . . . . . . . . . . . . . . . . . . . . . . . Max Gunslinging Chain 1 | . 1 . . . . . . . . . . . . . . . . . . . . . . . . . . . . . Shots Hit Robots 469 | . 67 16 . 23 145 9 . 2 . . . . 3 2 . . . 2 . . . 2 8 88 36 40 4 11 11 . Core Hits 271 | . 29 6 . 10 81 1 . 1 . . . . 1 5 . . . . . . . 2 10 72 14 22 . 5 12 . Critical Kills 14 | . . . . . . . . . . . . . . . . . . . . . . . . 14 . . . . . . Critical Parts Destroyed 8 | . . . . . . . . . . . . . . . . . . . . . . . . 8 . . . . . . Critical Strikes 49 | . 6 . . . 6 . . . . . . . 1 . . . . . . . . . . 30 2 1 1 1 1 . Burn 12 | . 6 . . . 6 . . . . . . . . . . . . . . . . . . . . . . . . . Destroy 22 | . . . . . . . . . . . . . . . . . . . . . . . . 22 . . . . . . Blast 12 | . . . . . . . . . . . . . . . . . . . . . . . . 8 2 1 1 . . . Sever 1 | . . . . . . . . . . . . . 1 . . . . . . . . . . . . . . . . . Impale 2 | . . . . . . . . . . . . . . . . . . . . . . . . . . . . 1 1 . Melee Attacks 160 | . . . . . . 7 . 24 . . 1 . 12 2 1 1 1 12 3 4 . 1 20 . . 2 6 50 11 2 Impact 32 | . . . . . . 7 . 24 . . 1 . . . . . . . . . . . . . . . . . . . Slashing 57 | . . . . . . . . . . . . . 12 2 1 1 1 12 3 4 . 1 20 . . . . . . . Piercing 67 | . . . . . . . . . . . . . . . . . . . . . . . . . . . 6 48 11 2 Sneak Attacks 14 | . . . . . . . . . . . . . 1 . . . . 1 . . . . . . . 2 . 8 2 . Combat Hostiles . | . . . . . . . . . . . . . . . . . . . . . . . . . . . . . . . Follow-up Attacks . | . . . . . . . . . . . . . . . . . . . . . . . . . . . . . . . Damage Inflicted 16687 | . 859 298 . 635 3802 200 . 77 . . . . 197 257 . . . 163 . . . 156 573 3803 1577 1328 112 549 2101 . Guns 4054 | . 856 . . . 1787 200 . . . . . . . . . . . . . . . . . . . 1104 35 . 72 . Cannons 6286 | . . 298 . 387 704 . . . . . . . . . . . . . . . . . 195 2743 1577 196 77 109 . . Explosions 4941 | . . . . 248 1302 . . . . . . . . 257 . . . . . . . 156 276 946 . . . . 1756 . Melee 1252 | . . . . . . . . 77 . . . . 197 . . . . 163 . . . . 102 . . . . 440 273 . Ramming 154 | . 3 . . . 9 . . . . . . . . . . . . . . . . . . 114 . 28 . . . . Kinetic 3790 | . . . . . . . . . . . . . . . . . . . . . . . . 2647 761 196 77 109 . . Thermal 6550 | . 856 298 . 387 2491 200 . . . . . . . . . . . . . . . . 195 96 816 1104 35 . 72 . Explosive 4941 | . . . . 248 1302 . . . . . . . . 257 . . . . . . . 156 276 946 . . . . 1756 . Electromagnetic . | . . . . . . . . . . . . . . . . . . . . . . . . . . . . . . . Impact 77 | . . . . . . . . 77 . . . . . . . . . . . . . . . . . . . . . . Slashing 462 | . . . . . . . . . . . . . 197 . . . . 163 . . . . 102 . . . . . . . Piercing 713 | . . . . . . . . . . . . . . . . . . . . . . . . . . . . 440 273 . Highest Corruption 4 | . 4 4 4 4 . 1 1 1 1 2 2 3 . . . . . . . . . . . . . . . 4 2 2 Average Corruption 2 | . 3 4 4 4 . 1 1 1 1 1 2 2 . . . . . . . . . . . . . . . 2 1 2 Corruption Purged . | . . . . . . . . . . . . . . . . . . . . . . . . . . . . . . . Corruption Blocked . | . . . . . . . . . . . . . . . . . . . . . . . . . . . . . . . Effects 100 | . 37 14 3 18 . . . 9 . 3 1 2 . . . . . . . . . . . . . . . 12 . 1 Message Errors 26 | . 9 4 . 6 . . . 2 . . 1 . . . . . . . . . . . . . . . . 3 . 1 Matter Fused 30 | . 12 3 . 8 . . . 2 . . . 2 . . . . . . . . . . . . . . . 3 . . Heat Flow Errors 11 | . 3 2 . . . . . 2 . 2 . . . . . . . . . . . . . . . . . 2 . . Energy Discharges 11 | . 4 2 1 2 . . . 1 . . . . . . . . . . . . . . . . . . . 1 . . Parts Fused 1 | . 1 . . . . . . . . . . . . . . . . . . . . . . . . . . . . . Data Loss (minor) 12 | . 5 2 2 . . . . . . 1 . . . . . . . . . . . . . . . . . 2 . . Data Loss (major) 4 | . 1 1 . 1 . . . 1 . . . . . . . . . . . . . . . . . . . . . . Misfires 1 | . . . . . . . . . . . . . . . . . . . . . . . . . . . . 1 . . Alerts 3 | . 1 . . 1 . . . 1 . . . . . . . . . . . . . . . . . . . . . . Weapon Failures 1 | . 1 . . . . . . . . . . . . . . . . . . . . . . . . . . . . . Overload Shots 16 | . . . . . . . . . . . . . . . . . . . . . . . . 2 13 . . . 1 . Overflow Damage 700 | . . 6 . 23 39 . . . . . . . 27 35 . . . 43 . . . . 9 13 10 . 29 187 279 . Projectiles 77 | . . 6 . . 19 . . . . . . . . . . . . . . . . . 9 4 10 . 29 . . . Explosions 254 | . . . . 23 20 . . . . . . . . 35 . . . . . . . . . . . . . . 176 . Melee 369 | . . . . . . . . . . . . . 27 . . . . 43 . . . . . 9 . . . 187 103 . Knockbacks 15 | . . . . . . . . . . . . . . . . . . . . . . . . 12 1 . 2 . . . Impact 1 | . . . . . . . . . . . . . . . . . . . . . . . . 1 . . . . . . Kinetic 13 | . . . . . . . . . . . . . . . . . . . . . . . . 10 1 . 2 . . . Secondary 1 | . . . . . . . . . . . . . . . . . . . . . . . . 1 . . . . . . Self-Inflicted Damage 70 | . . . . . 34 . . . . . . . . 13 . . . . . . . . 5 18 . . . . . . Shots 5 | . . . . . 2 . . . . . . . . 1 . . . . . . . . 1 1 . . . . . . Rammed 18 | . 1 . . . 2 . . . . . . . . . . . . . . . . . . 12 . 3 . . . . Targets Rammed 18 | . 1 . . . 2 . . . . . . . . . . . . . . . . . . 12 . 3 . . . . Kicked . | . . . . . . . . . . . . . . . . . . . . . . . . . . . . . . . Crushed . | . . . . . . . . . . . . . . . . . . . . . . . . . . . . . . . Highest Temperature 318 | . 318 147 . 272 150 1 . 264 . 265 . 86 138 184 82 . . 40 . . . . 23 16 . . . 120 125 . Average Temperature 69 | . 77 53 . 99 32 1 . 119 . 95 . 47 63 76 39 . . 20 . . . . 15 6 . . . 74 82 . Received Heat Transfer 1670 | . 54 57 . 93 891 36 . 18 . . . 18 18 . 18 . . 9 . 12 . . 27 206 . 9 21 66 90 27 Effects 1 | . . . . . . . . . . 1 . . . . . . . . . . . . . . . . . . . . Energy Bleed 1 | . . . . . . . . . . 1 . . . . . . . . . . . . . . . . . . . . Siege Activations 12 | . . . . . . . . . . . . . . . . . . . . . . . . 9 1 1 1 . . . Total Turns 194 | . . . . . . . . . . . . . . . . . . . . . . . . 126 50 15 3 . . . Longest Duration 50 | . . . . . . . . . . . . . . . . . . . . . . . . 32 50 15 3 . . . Robots Corrupted 1 | . . . . . . . . . . . . . . . . . . . . . . . . 1 . . . . . . Combat Hostiles . | . . . . . . . . . . . . . . . . . . . . . . . . . . . . . . . Parts Fried 3 | . . . . . . . . . . . . . . . . . . . . . . . . 3 . . . . . . Impact Corruptions 1 | . . . . . . . . . . . . . . . . . . . . . . . . 1 . . . . . . Robots Melted 2 | . 1 . . . 1 . . . . . . . . . . . . . . . . . . . . . . . . . Combat Hostiles 1 | . . . . . 1 . . . . . . . . . . . . . . . . . . . . . . . . . Parts Melted 14 | . 3 5 . 1 4 . . . . . . . . . . . . . . . . . . . . 1 . . . . Heat Transferred 13419 | . 2865 629 . 814 5624 370 . . . . . . . . . . . . . . . . 300 150 1100 1443 74 . 50 . Parts Sabotaged . | . . . . . . . . . . . . . . . . . . . . . . . . . . . . . . . Parts Stolen . | . . . . . . . . . . . . . . . . . . . . . . . . . . . . . . . Parts Stripped . | . . . . . . . . . . . . . . . . . . . . . . . . . . . . . . . Power Chain Reactions . | . . . . . . . . . . . . . . . . . . . . . . . . . . . . . . . Alert | -11 -10 -10 -10 -9 -8 -7 -7 -7 -7 -7 -7 -6 -6 -6 -6 -6 -5 -5 -5 -5 -5 -4 -4 -4 -4 -4 -4 -3 -2 -2 ------- Run | Yrd Mat Min Exi Min Mat Fac Was Fac Low Low Dat Pro Fac Low Low Zio Pro Fac Upp Upp Zhi Pro Fac Ext Cet Arc Hub Res Res Tes Peak Influence 1669 | . 197 60 . 144 813 567 174 247 . . . . 180 . . . . 212 . . . . 253 1669 974 714 880 654 470 1648 Initial 928 | . . . . . 7 357 174 121 . . . . 37 . . . . 46 . . . . 53 123 928 389 186 462 157 187 Average 356 | . 86 14 . 67 378 484 174 170 . . . . 73 . . . . 106 . . . . 101 767 960 616 453 426 233 1597 Maximum Alert Level 5 | . . . . . 3 2 . 1 . . . . . . . . . 1 . . . . 1 5 3 3 3 2 2 5 Low Security (%) 52 | 100 100 100 . 100 39 . 100 74 . . . . 100 . . . . 98 . . . . 92 16 . . 14 . 28 . Level 1 12 | . . . . . 17 31 . 25 . . . . . . . . . 1 . . . . 7 9 . 2 25 31 69 . Level 2 16 | . . . . . 19 68 . . . . . . . . . . . . . . . . . 17 . 84 45 68 2 . Level 3 14 | . . . . . 22 . . . . . . . . . . . . . . . . . . 38 100 13 14 . . . Level 4 2 | . . . . . . . . . . . . . . . . . . . . . . . . 11 . . . . . . Level 5 . | . . . . . . . . . . . . . . . . . . . . . . . . 5 . . . . . . High Security . | . . . . . . . . . . . . . . . . . . . . . . . . . . . . . . . Max Security . | . . . . . . . . . . . . . . . . . . . . . . . . . . . . . . 99 Squads Dispatched 55 | . 3 1 . . 4 1 . 3 . . . . 5 . . . . 3 . . . . 5 10 . . 4 8 2 6 Investigation 13 | . . . . . . 1 . 1 . . . . 2 . . . . 2 . . . . 3 . . . 2 2 . . Extermination 8 | . . . . . . . . 2 . . . . 1 . . . . 1 . . . . 1 . . . . 2 1 . Reinforcement 19 | . 3 . . . 3 . . . . . . . 2 . . . . . . . . . 1 3 . . 2 4 1 . Assault 15 | . . 1 . . 1 . . . . . . . . . . . . . . . . . . 7 . . . . . 6 Garrison . | . . . . . . . . . . . . . . . . . . . . . . . . . . . . . . . Intercept . | . . . . . . . . . . . . . . . . . . . . . . . . . . . . . . . Searches Triggered 2 | . . . . . . . . . . . . . . . . . . . . . . . . . . . . 2 . . Data Miner Redirects 3 | . . . . . . . . . . . . . . . . . . . . . . . . 3 . . . . . . Construction Impeded 4 | . . . . . 1 . . . . . . . . . . . . . . . . . . 1 . . . 2 . . Haulers Reinforced 1 | . . . . . . . . . . . . . 1 . . . . . . . . . . . . . . . . . Active Scanning Responses . | . . . . . . . . . . . . . . . . . . . . . . . . . . . . . . . Cargo Convoy Interrupts . | . . . . . . . . . . . . . . . . . . . . . . . . . . . . . . . Stealth | -11 -10 -10 -10 -9 -8 -7 -7 -7 -7 -7 -7 -6 -6 -6 -6 -6 -5 -5 -5 -5 -5 -4 -4 -4 -4 -4 -4 -3 -2 -2 --------- Run | Yrd Mat Min Exi Min Mat Fac Was Fac Low Low Dat Pro Fac Low Low Zio Pro Fac Upp Upp Zhi Pro Fac Ext Cet Arc Hub Res Res Tes Distress Signals 16 | . . . . . 3 . . 2 . . . . . . . . . 1 . . . . 3 2 1 . 1 2 1 . Communications Jammed . | . . . . . . . . . . . . . . . . . . . . . . . . . . . . . . . Distress Signals . | . . . . . . . . . . . . . . . . . . . . . . . . . . . . . . . Times Spotted 424 | . 26 4 . 10 63 6 . 15 4 1 . 16 8 2 3 . 3 14 4 1 . 7 29 79 5 42 24 33 19 6 Peak Tracking Total 14 | . 4 2 . 14 7 6 . 7 5 1 . 10 4 2 3 . 5 4 3 1 . 5 6 14 5 2 14 11 11 10 Tactical Retreats 63 | . 3 1 . 1 3 3 . 3 4 1 . 7 1 . 1 . 2 5 1 . . 1 11 4 . . . 10 1 . Traps | -11 -10 -10 -10 -9 -8 -7 -7 -7 -7 -7 -7 -6 -6 -6 -6 -6 -5 -5 -5 -5 -5 -4 -4 -4 -4 -4 -4 -3 -2 -2 ------- Run | Yrd Mat Min Exi Min Mat Fac Was Fac Low Low Dat Pro Fac Low Low Zio Pro Fac Upp Upp Zhi Pro Fac Ext Cet Arc Hub Res Res Tes Traps Triggered 17 | . 6 . . . 1 3 . 1 . . . . 1 . . . . 1 . . . . 3 . . . . 1 . . Indirectly . | . . . . . . . . . . . . . . . . . . . . . . . . . . . . . . . Trap Hack Attempts . | . . . . . . . . . . . . . . . . . . . . . . . . . . . . . . . Triggered . | . . . . . . . . . . . . . . . . . . . . . . . . . . . . . . . Disarmed . | . . . . . . . . . . . . . . . . . . . . . . . . . . . . . . . Reprogrammed . | . . . . . . . . . . . . . . . . . . . . . . . . . . . . . . . Reused . | . . . . . . . . . . . . . . . . . . . . . . . . . . . . . . . Traps Extracted . | . . . . . . . . . . . . . . . . . . . . . . . . . . . . . . . Installed . | . . . . . . . . . . . . . . . . . . . . . . . . . . . . . . . Triggered . | . . . . . . . . . . . . . . . . . . . . . . . . . . . . . . . Machines | -11 -10 -10 -10 -9 -8 -7 -7 -7 -7 -7 -7 -6 -6 -6 -6 -6 -5 -5 -5 -5 -5 -4 -4 -4 -4 -4 -4 -3 -2 -2 ---------- Run | Yrd Mat Min Exi Min Mat Fac Was Fac Low Low Dat Pro Fac Low Low Zio Pro Fac Upp Upp Zhi Pro Fac Ext Cet Arc Hub Res Res Tes Machines Disabled 22 | . . . . . 2 . . . . . . . . . . . . . . 1 . . 1 9 . 3 3 . 2 1 Max in Single Turn 1 | . . . . . 1 . . . . . . . . . . . . . . 1 . . 1 1 . 1 . . 1 1 Garrison Access 7 | . . . . . . 1 . 1 . . . . . . . . . 1 . . . . 3 . . . . . 1 . Network Hub 2 | . . . . . . . . . . . . . . . . . . . . . . . . . . . 2 . . . Machines Repaired . | . . . . . . . . . . . . . . . . . . . . . . . . . . . . . . . Machines Dismantled . | . . . . . . . . . . . . . . . . . . . . . . . . . . . . . . . Machines Sabotaged 2 | . . . . . . . . . . . . . . . . . . . . . . . . . . . 2 . . . Overloaded Fab Kills . | . . . . . . . . . . . . . . . . . . . . . . . . . . . . . . . Hacking | -11 -10 -10 -10 -9 -8 -7 -7 -7 -7 -7 -7 -6 -6 -6 -6 -6 -5 -5 -5 -5 -5 -4 -4 -4 -4 -4 -4 -3 -2 -2 --------- Run | Yrd Mat Min Exi Min Mat Fac Was Fac Low Low Dat Pro Fac Low Low Zio Pro Fac Upp Upp Zhi Pro Fac Ext Cet Arc Hub Res Res Tes Machines Accessed 116 | . 5 . 1 . 7 7 . 12 . 1 4 . 12 . 1 . . 17 . . 4 . 21 4 2 . 2 10 6 . Terminals 63 | . 5 . . . 6 2 . 7 . . . . 8 . . . . 11 . . . . 10 2 2 . 2 6 2 . Fabricators 8 | . . . . . . . . 1 . . . . . . . . . 3 . . . . 2 . . . . 2 . . Repair Stations 11 | . . . . . . 1 . 2 . . . . 2 . . . . 1 . . . . 2 . . . . . 3 . Recycling Units 8 | . . . . . 1 . . . . . . . 1 . . . . 1 . . . . 1 2 . . . 2 . . Scanalyzers 8 | . . . . . . 3 . 1 . . . . 1 . . . . . . . . . 3 . . . . . . . Garrison Access 7 | . . . . . . 1 . 1 . . . . . . . . . 1 . . . . 3 . . . . . 1 . Total Hacks 458 | . 20 . 1 . 23 31 . 42 . 1 26 . 37 . 1 . . 63 . . 17 . 75 15 4 . 12 67 23 . Successful 307 | . 11 . 1 . 13 24 . 27 . 1 26 . 16 . 1 . . 44 . . 17 . 55 10 4 . 9 34 14 . Failed 149 | . 8 . . . 10 7 . 15 . . . . 21 . . . . 19 . . . . 20 5 . . 3 32 9 . Catastrophic 28 | . . . . . 2 3 . 3 . . . . 4 . . . . 3 . . . . 3 2 . . . 5 3 . Database Lockouts 2 | . 1 . . . . . . . . . . . . . . . . . . . . . . . . . . 1 . . Manual 232 | . 14 . 1 . 11 6 . 22 . . . . 18 . . . . 49 . 1 . . 32 9 2 . 12 48 7 . Terminals 292 | . 20 . . . 22 7 . 26 . . . . 27 . . . . 51 . . . . 44 11 4 . 12 58 10 . Fabricators 21 | . . . . . . . . 4 . . . . . . . . . 6 . . . . 5 . . . . 6 . . Repair Stations 39 | . . . . . . 5 . 7 . . . . 5 . . . . 4 . . . . 6 . . . . . 12 . Recycling Units 15 | . . . . . 1 . . . . . . . 2 . . . . 1 . . . . 4 4 . . . 3 . . Scanalyzers 36 | . . . . . . 17 . 3 . . . . 3 . . . . . . . . . 13 . . . . . . . Garrison Access 9 | . . . . . . 2 . 2 . . . . . . . . . 1 . . . . 3 . . . . . 1 . Terminal Hacks 133 | . 4 . 1 . 4 2 . 7 . 1 26 . 5 . 1 . . 18 . . 17 . 14 4 4 . 3 19 3 . Record 22 | . . . . . . . . . . . 11 . . . . . . . . . 5 . 1 . 3 . . 2 . . Part Schematic 19 | . . . . . . . . 1 . . 9 . . . . . . 1 . . 4 . 1 . . . . 3 . . Robot Schematic 6 | . . . . . . . . . . . 6 . . . . . . . . . . . . . . . . . . . Robot Analysis 11 | . 1 . . . 1 . . . . . . . . . . . . 5 . . 4 . . . . . . . . . Prototype ID Bank 11 | . 1 . . . 2 . . 1 . . . . . . . . . 2 . . 4 . . . . . . 1 . . Open Door 3 | . . . . . . . . . . 1 . . . . 1 . . . . . . . . . 1 . . . . . Level Access Points 2 | . . . . . . . . . . . . . . . . . . . . . . . . . . . 1 1 . . Branch Access Points 7 | . . . . . . . . 1 . . . . 1 . . . . 1 . . . . 1 1 . . . 1 1 . Machine Index 1 | . . . . . . . . . . . . . . . . . . . . . . . 1 . . . . . . . Terminal Index 7 | . . . . . . 1 . 1 . . . . 1 . . . . 1 . . . . 1 . . . . 1 1 . Fabricator Index 3 | . . . . . . . . 1 . . . . . . . . . 1 . . . . . . . . . 1 . . Garrison Index 1 | . . . . . . . . . . . . . . . . . . . . . . . 1 . . . . . . . Unreport Threat 1 | . . . . . . . . . . . . . . . . . . . . . . . . . . . . 1 . . Locate Traps 10 | . 1 . . . . 1 . . . . . . 1 . . . . 1 . . . . 1 1 . . 1 3 . . Recall Investigation 4 | . . . . . . . . . . . . . . . . . . 2 . . . . 1 . . . . 1 . . Recall Extermination 4 | . . . . . . . . 2 . . . . . . . . . 1 . . . . . . . . . 1 . . Recall Reinforcements 1 | . . . . . . . . . . . . . 1 . . . . . . . . . . . . . . . . . Hauler Manifests 2 | . . . . . . . . . . . . . . . . . . 1 . . . . . . . . . 1 . . Registered Prototypes 1 | . . . . . . . . . . . . . . . . . . . . . . . 1 . . . . . . . Zone Layout 16 | . 1 . . . 1 . . . . . . . 1 . . . . 2 . . . . 5 2 . . 1 2 1 . Derelict Proto ID Bank 1 | . . . 1 . . . . . . . . . . . . . . . . . . . . . . . . . . . Fabricator Hacks 15 | . . . . . . . . 2 . . . . . . . . . 5 . . . . 4 . . . . 4 . . Network Status 1 | . . . . . . . . . . . . . . . . . . . . . . . 1 . . . . . . . Load Schematic 6 | . . . . . . . . 1 . . . . . . . . . 2 . . . . 1 . . . . 2 . . Build 8 | . . . . . . . . 1 . . . . . . . . . 3 . . . . 2 . . . . 2 . . Repair Station Hacks 32 | . . . . . . 3 . 6 . . . . 4 . . . . 4 . . . . 6 . . . . . 9 . Scan Component 16 | . . . . . . 2 . 3 . . . . 2 . . . . 2 . . . . 3 . . . . . 4 . Repair 15 | . . . . . . 1 . 3 . . . . 2 . . . . 2 . . . . 3 . . . . . 4 . Refit 1 | . . . . . . . . . . . . . . . . . . . . . . . . . . . . . 1 . Recycling Unit Hacks 8 | . . . . . 1 . . . . . . . . . . . . 1 . . . . 1 2 . . . 3 . . Retrieve Matter 1 | . . . . . . . . . . . . . . . . . . . . . . . . . . . . 1 . . Retrieve Components 7 | . . . . . 1 . . . . . . . . . . . . 1 . . . . 1 2 . . . 2 . . Scanalyzer 32 | . . . . . . 16 . 3 . . . . . . . . . . . . . . 13 . . . . . . . Insert Component 16 | . . . . . . 8 . 2 . . . . . . . . . . . . . . 6 . . . . . . . Analyze 16 | . . . . . . 8 . 1 . . . . . . . . . . . . . . 7 . . . . . . . Garrison Access Hacks 6 | . . . . . . . . 1 . . . . . . . . . 1 . . . . 3 . . . . . 1 . Seal Access 6 | . . . . . . . . 1 . . . . . . . . . 1 . . . . 3 . . . . . 1 . Unauthorized Hacks 81 | . 7 . . . 8 3 . 8 . . . . 7 . . . . 15 . . . . 14 4 . . 6 8 1 . Terminals 76 | . 7 . . . 8 2 . 8 . . . . 5 . . . . 15 . . . . 14 2 . . 6 8 1 . Track 6 | . . . . . . . . 1 . . . . . . . . . 1 . . . . 1 . . . 1 2 . . Assimilate 9 | . 1 . . . . . . 2 . . . . 1 . . . . 1 . . . . 3 . . . . 1 . . Botnet 27 | . 2 . . . 2 1 . 2 . . . . 2 . . . . 6 . . . . 4 2 . . 1 4 1 . Detonate 1 | . . . . . . . . . . . . . . . . . . . . . . . . . . . 1 . . . Disrupt 1 | . . . . . . . . . . . . . . . . . . . . . . . . . . . 1 . . . Operators 3 | . 1 . . . . . . . . . . . . . . . . 1 . . . . 1 . . . . . . . Skim 27 | . 3 . . . 6 1 . 3 . . . . 2 . . . . 6 . . . . 5 . . . . 1 . . Sabotage 2 | . . . . . . . . . . . . . . . . . . . . . . . . . . . 2 . . . Fabricators . | . . . . . . . . . . . . . . . . . . . . . . . . . . . . . . . Repair Stations . | . . . . . . . . . . . . . . . . . . . . . . . . . . . . . . . Recycling Units 3 | . . . . . . . . . . . . . 1 . . . . . . . . . . 2 . . . . . . Mask 2 | . . . . . . . . . . . . . . . . . . . . . . . . 2 . . . . . . Tunnel 1 | . . . . . . . . . . . . . 1 . . . . . . . . . . . . . . . . . Scanalyzers 1 | . . . . . . . . . . . . . 1 . . . . . . . . . . . . . . . . . Extract 1 | . . . . . . . . . . . . . 1 . . . . . . . . . . . . . . . . . Garrison Access 1 | . . . . . . 1 . . . . . . . . . . . . . . . . . . . . . . . . Jam 1 | . . . . . . 1 . . . . . . . . . . . . . . . . . . . . . . . . Data Cores Recovered . | . . . . . . . . . . . . . . . . . . . . . . . . . . . . . . . Used . | . . . . . . . . . . . . . . . . . . . . . . . . . . . . . . . Hacking Detections 76 | . 4 . . . 6 7 . 10 . . . . 10 . . . . 11 . . . . 15 2 1 . . 7 3 . Full Trace Events 7 | . . . . . . . . 1 . . . . . . . . . 2 . . . . 2 . . . . 2 . . Feedback Events . | . . . . . . . . . . . . . . . . . . . . . . . . . . . . . . . Feedback Blocked . | . . . . . . . . . . . . . . . . . . . . . . . . . . . . . . . Robot Schematics Acquired 10 | . . . . . . . . . . . 6 . . . . 4 . . . . . . . . . . . . . . Robots Built 2 | . . . . . . . . . . . . . . . . . . . . . . . 2 . . . . . . . Authchips . | . . . . . . . . . . . . . . . . . . . . . . . . . . . . . . . Time 56 | . . . . . . . . . . . . . . . . . . . . . . . 56 . . . . . . . Total Robot Build Rating 12 | . . . . . . . . . . . . . . . . . . . . . . . 12 . . . . . . . Part Schematics Acquired 44 | . . . . . . 8 . 2 . . 9 . 1 . . 12 . 1 . . 4 . 4 . . . . 3 . . Parts Built 7 | . . . . . . . . 1 . . . . . . . . . 4 . . . . 1 . . . . 1 . . Authchips . | . . . . . . . . . . . . . . . . . . . . . . . . . . . . . . . Time 549 | . . . . . . . . 47 . . . . . . . . . 254 . . . . 93 . . . . 155 . . Total Part Build Rating 45 | . . . . . . . . 5 . . . . . . . . . 26 . . . . 7 . . . . 7 . . Parts Repaired 15 | . . . . . . 1 . 3 . . . . 2 . . . . 2 . . . . 3 . . . . . 4 . Time 506 | . . . . . . 26 . 114 . . . . 88 . . . . 88 . . . . 72 . . . . . 118 . Parts Recycled . | . . . . . . . . . . . . . . . . . . . . . . . . . . . . . . . Recycled Matter . | . . . . . . . . . . . . . . . . . . . . . . . . . . . . . . . Retrieved Matter . | . . . . . . . . . . . . . . . . . . . . . . . . . . . . . . . Retrieved Components 22 | . . . . . 5 . . . . . . . . . . . . 3 . . . . 1 10 . . . 3 . . Parts Scanalyzed 13 | . . . . . . 8 . 1 . . . . . . . . . . . . . . 4 . . . . . . . Part Schematics Acquired 13 | . . . . . . 8 . 1 . . . . . . . . . . . . . . 4 . . . . . . . Parts Damaged 3 | . . . . . . 1 . 1 . . . . . . . . . . . . . . 1 . . . . . . . Bothacking | -11 -10 -10 -10 -9 -8 -7 -7 -7 -7 -7 -7 -6 -6 -6 -6 -6 -5 -5 -5 -5 -5 -4 -4 -4 -4 -4 -4 -3 -2 -2 ------------ Run | Yrd Mat Min Exi Min Mat Fac Was Fac Low Low Dat Pro Fac Low Low Zio Pro Fac Upp Upp Zhi Pro Fac Ext Cet Arc Hub Res Res Tes Used RIF Installer . | . . . . . . . . . . . . . . . . . . . . . . . . . . . . . . . Robots Hacked 3 | . . . . . . . . . . . . . . . . . . . . . . . . . . 2 . 1 . . Non-combat 1 | . . . . . . . . . . . . . . . . . . . . . . . . . . . . 1 . . Combat 2 | . . . . . . . . . . . . . . . . . . . . . . . . . . 2 . . . . Robot Hacks Applied 4 | . . . . . . . . . . . . . . . . . . . . . . . . . . 2 . 2 . . parse_system 2 | . . . . . . . . . . . . . . . . . . . . . . . . . . 2 . . . . no_distress 2 | . . . . . . . . . . . . . . . . . . . . . . . . . . . . 2 . . Relay Couplers Released . | . . . . . . . . . . . . . . . . . . . . . . . . . . . . . . . Fabnet Peak Effective % . | . . . . . . . . . . . . . . . . . . . . . . . . . . . . . . . Robots Rewired 8 | . . . . . . . . . . . . . . . . . . 1 . . . . . 7 . . . . . . Allies Hacked . | . . . . . . . . . . . . . . . . . . . . . . . . . . . . . . . Hacks Repelled . | . . . . . . . . . . . . . . . . . . . . . . . . . . . . . . . Allies | -11 -10 -10 -10 -9 -8 -7 -7 -7 -7 -7 -7 -6 -6 -6 -6 -6 -5 -5 -5 -5 -5 -4 -4 -4 -4 -4 -4 -3 -2 -2 -------- Run | Yrd Mat Min Exi Min Mat Fac Was Fac Low Low Dat Pro Fac Low Low Zio Pro Fac Upp Upp Zhi Pro Fac Ext Cet Arc Hub Res Res Tes Total Allies 40 | . . 1 . 1 . . . 2 . . . . 1 . . . . 2 . . . . 4 21 7 . . 1 . . Largest Group 15 | . . 1 . 1 . . . 1 . . . . 1 . . . . 1 . . . . 2 15 7 7 7 1 . . Highest-Rated Group 746 | . . 31 . 31 . . . 26 . . . . 26 . . . . 42 . . . . 98 746 672 672 672 40 . . Highest-Rated Ally 159 | . . 31 . 31 . . . 26 . . . . 26 . . . . 42 . . . . 49 159 122 96 96 40 . . Total Orders 24 | . . . . . . . . . . . . . . . . . . 1 . . . . . 23 . . . . . . STAY 1 | . . . . . . . . . . . . . . . . . . 1 . . . . . . . . . . . . FOLLOW 1 | . . . . . . . . . . . . . . . . . . . . . . . . 1 . . . . . . EXPLORE 1 | . . . . . . . . . . . . . . . . . . . . . . . . 1 . . . . . . RETURN 21 | . . . . . . . . . . . . . . . . . . . . . . . . 21 . . . . . . Ally Attacks 499 | . . 12 . 2 . . . . . . . . . . . . . 1 . . . . 14 356 2 19 93 . . . Total Damage 13455 | . . 206 . 22 . . . . . . . . . . . . . . . . . . 556 8438 42 824 3367 . . . Kills 74 | . . . . 1 . . . . . . . . . . . . . . . . . . 3 53 . 3 14 . . . Allies Corrupted . | . . . . . . . . . . . . . . . . . . . . . . . . . . . . . . . Allies Melted . | . . . . . . . . . . . . . . . . . . . . . . . . . . . . . . . Intel | -11 -10 -10 -10 -9 -8 -7 -7 -7 -7 -7 -7 -6 -6 -6 -6 -6 -5 -5 -5 -5 -5 -4 -4 -4 -4 -4 -4 -3 -2 -2 ------- Run | Yrd Mat Min Exi Min Mat Fac Was Fac Low Low Dat Pro Fac Low Low Zio Pro Fac Upp Upp Zhi Pro Fac Ext Cet Arc Hub Res Res Tes Robot Analysis Total 11 | . 1 . . . 1 . . . . . . . . . . . . 5 . . 4 . . . . . . . . . Derelict Logs Recovered 10 | . . 1 . . . . . . 1 1 . 1 . . . 2 1 . 2 . . 1 . . . . . . . . Drone Launches 27 | . . . . . . . . . . . . . . . . . . . . . . . . 27 . . . . . . Drone Recoveries 24 | . . . . . . . . . . . . . . . . . . . . . . . . 24 . . . . . . Exploration | -11 -10 -10 -10 -9 -8 -7 -7 -7 -7 -7 -7 -6 -6 -6 -6 -6 -5 -5 -5 -5 -5 -4 -4 -4 -4 -4 -4 -3 -2 -2 ------------- Run | Yrd Mat Min Exi Min Mat Fac Was Fac Low Low Dat Pro Fac Low Low Zio Pro Fac Upp Upp Zhi Pro Fac Ext Cet Arc Hub Res Res Tes Turns Passed 18930 | 76 2118 727 339 722 3569 572 75 755 142 262 44 171 565 129 95 293 120 747 147 93 53 91 1372 2914 399 483 211 1095 433 118 Spaces Moved 18570 | 42 713 274 259 376 1211 942 185 1165 354 492 101 418 1064 276 247 803 269 1471 401 248 144 219 2244 1502 189 191 185 1693 548 344 Core 6 | 1 . 4 . . 1 . . . . . . . . . . . . . . . . . . . . . . . . . Treads 3570 | 41 713 76 . . 843 . . . . . . . . . . . . . . . . . . 1449 189 191 68 . . . Legs 25 | . . . . . 25 . . . . . . . . . . . . . . . . . . . . . . . . . Wheels 1158 | . . 194 259 376 329 . . . . . . . . . . . . . . . . . . . . . . . . . Hover . | . . . . . . . . . . . . . . . . . . . . . . . . . . . . . . . Flight 13811 | . . . . . 13 942 185 1165 354 492 101 418 1064 276 247 803 269 1471 401 248 144 219 2244 53 . . 117 1693 548 344 Fastest Speed 27 | 50 160 130 130 130 50 39 39 39 39 39 39 39 34 34 34 34 34 32 32 32 32 32 32 32 167 167 27 29 28 28 Average Speed 76 | 157 254 247 130 151 230 39 39 39 39 39 39 39 34 34 34 34 34 32 32 32 32 32 32 160 167 167 81 30 42 28 Slowest Speed 1600 | 160 480 1550 130 175 1600 39 39 39 39 39 39 39 34 34 34 34 34 34 32 32 32 32 124 180 170 167 167 32 115 37 Overloaded Moves 5 | . . . . . . . . . . . . . . . . . . . . . . . . . . . 5 . . . Propulsion Burnouts . | . . . . . . . . . . . . . . . . . . . . . . . . . . . . . . . Robots Hopped 52 | . . . . . . 12 . 6 1 1 . 1 1 . . . . 7 . . . . 17 . . . 1 . 5 . Cave-ins Triggered . | . . . . . . . . . . . . . . . . . . . . . . . . . . . . . . . Teleports 1 | . . . . . . . . . . . . . . . . . . . . . . . . . . . . 1 . . Exploration Rate (%) 54 | 6 95 53 62 60 63 24 92 33 68 65 69 63 28 60 49 84 46 39 53 52 62 50 41 95 78 80 23 40 15 37 Regions Visited 30 Branch Regions 20 Pre-discovered Areas 11 | . . 1 . . 1 . . . 1 1 1 . 1 . . 1 . . 1 . 3 . . . . . . . . . Known Exits Taken 10 | . . . . . 1 . . 1 . . . . 1 . . . . 1 . . . 1 1 1 . . 1 1 1 . Unknown Exits Taken 18 | 1 1 1 1 1 . . . . 1 1 1 1 . 1 1 1 1 . 1 1 1 . . . 1 1 . . . . Scrap Searched 20 | . . 1 . 2 . . . . 2 2 . 3 . 1 2 3 . . . 3 . 1 . . . . . . . . Spaces Dug 171 | . . . . . . 7 . 22 . 6 1 2 9 11 3 . 1 11 3 3 . 1 22 6 . . 5 52 5 1 Terrain Destroyed 506 | . . . . 20 107 7 . 22 . 6 1 2 12 32 3 . 1 11 3 3 . 33 34 71 9 11 7 57 53 1 Melee 124 | . . . . . . 7 . 22 . . 1 . 7 2 1 . 1 10 3 3 . 1 18 . . . 5 37 5 1 Projectile 108 | . . . . . 2 . . . . 6 . 2 5 9 2 . . 1 . . . . 7 32 9 11 2 20 . . AOE 274 | . . . . 20 105 . . . . . . . . 21 . . . . . . . 32 9 39 . . . . 48 . Terrain Rammed . | . . . . . . . . . . . . . . . . . . . . . . . . . . . . . . . Walls Destroyed . | . . . . . . . . . . . . . . . . . . . . . . . . . . . . . . . Machines Disabled . | . . . . . . . . . . . . . . . . . . . . . . . . . . . . . . . Actions | -11 -10 -10 -10 -9 -8 -7 -7 -7 -7 -7 -7 -6 -6 -6 -6 -6 -5 -5 -5 -5 -5 -4 -4 -4 -4 -4 -4 -3 -2 -2 --------- Run | Yrd Mat Min Exi Min Mat Fac Was Fac Low Low Dat Pro Fac Low Low Zio Pro Fac Upp Upp Zhi Pro Fac Ext Cet Arc Hub Res Res Tes Total 22221 | 49 892 296 263 487 1781 1109 188 1416 356 553 103 421 1248 293 254 819 295 1712 414 254 150 233 2832 1851 228 288 225 2141 711 359 Wait 2439 | . 89 6 . 77 308 127 . 219 4 50 . 2 136 1 1 6 26 196 11 3 . 8 503 154 8 22 11 345 119 7 Move 18444 | 41 712 273 258 375 1210 921 184 1154 351 489 100 415 1061 275 246 802 268 1456 400 247 143 218 2211 1501 188 190 182 1692 537 344 Hop 45 | . . . . . . 9 . 4 1 1 . 1 1 . . . . 7 . . . . 15 . . . 1 . 5 . Pick Up 124 | 2 10 3 2 1 26 10 1 2 . 1 . . 12 . 2 1 . 5 . . 2 . 14 12 . 1 1 6 7 3 Fast Attach 90 | 6 7 2 . 1 21 3 . 2 . 2 1 . 3 . . 2 . 3 . . 2 . 6 11 5 2 . 5 5 1 Attach 57 | . 1 . . 5 9 3 . . . . . . 2 . . . . 2 . . . . 6 10 1 . 6 4 7 1 Detach 38 | . 4 . 2 . 11 1 . . . . . . 1 . . . . . . . . . 1 4 2 . 4 3 5 . Swap 101 | . 2 . . 5 28 4 1 2 . 2 . 1 2 2 . 4 . 11 . . . 3 9 12 . . . 10 3 . Drop 149 | . 2 . 1 1 49 11 2 2 . 2 1 . 13 . 2 3 . 5 . . 3 . 13 20 2 3 5 3 5 1 Fire 494 | . 64 12 . 22 117 8 . . . 6 . 2 5 13 2 . . 1 . . . 3 16 97 22 65 9 23 7 . Melee 160 | . . . . . . 7 . 24 . . 1 . 12 2 1 1 1 12 3 4 . 1 20 . . 2 6 50 11 2 Ram . | . . . . . . . . . . . . . . . . . . . . . . . . . . . . . . . Kick . | . . . . . . . . . . . . . . . . . . . . . . . . . . . . . . . Crush 18 | . 1 . . . 2 . . . . . . . . . . . . . . . . . . 12 . 3 . . . . Escape Stasis 43 | . . . . . . 5 . 7 . . . . . . . . . 13 . . . . 18 . . . . . . . Rewire 19 | . . . . . . . . . . . . . . . . . . 1 . . . . . 18 . . . . . . Trap . | . . . . . . . . . . . . . . . . . . . . . . . . . . . . . . . Miscellaneous . | . . . . . . . . . . . . . . . . . . . . . . . . . . . . . . . Route ------- -11/Scrapyard -10/Materials (discovered 5 exits: [*Mat x3] / [*Min x2]) -10/Mines -10/Exiles -9/Mines (discovered 2 exits: *Mat x2) -8/Materials (discovered 3 exits: *Fac x3) -7/Factory -7/Waste -7/Factory (discovered 2 exits: *Low x2) -7/Lower Caves -7/Lower Caves -7/Data Miner -6/Proximity Caves -6/Factory (discovered 2 exits: *Low x2) -6/Lower Caves -6/Lower Caves (discovered 2 exits: *Fac / [*Zio]) -6/Zion -5/Proximity Caves -5/Factory (discovered 5 exits: *Fac x3 / *Upp x2) -5/Upper Caves -5/Upper Caves -5/Zhirov -4/Proximity Caves -4/Factory (discovered 5 exits: *Upp x2 / *Ext x2 / Arm) -4/Extension (discovered 3 exits: *Res x2 / *Cet) -4/Cetus -4/Archives (discovered 3 exits: *Res / *Hub x2) -4/Hub_04(d) (discovered 4 exits: *Res x4) -3/Research (discovered 5 exits: *Res x3 / Qua x2) -2/Research (discovered 2 exits: *Tes x2) -2/Testing History --------- Turn | Location | Event 11 | -11/Scrapyard | Discovered new exit (range 16) 77 | -11/Scrapyard | Entered Materials 308 | -10/Materials | Build established: Mutant 345 | -10/Materials | Discovered new exit (range 16) 352 | -10/Materials | Central database locked down 507 | -10/Materials | Discovered new exit (range 7) 683 | -10/Materials | Discovered new exit (range 15) 1064 | -10/Materials | Discovered new exit (range 16) 1876 | -10/Materials | Discovered new exit (range 16) 2195 | -10/Materials | Entered Mines 2680 | -10/Mines | Met a Derelict testing a Signal Generator 2732 | -10/Mines | Received a Rocket Launcher from a helpful Derelict 2867 | -10/Mines | Deemed a non-threat by the Exiles lab entrance 2868 | -10/Mines | Discovered new exit (range 5) 2922 | -10/Mines | Entered Exiles 2955 | -10/Exiles | Met 8R-AWN 2977 | -10/Exiles | Met EX-HEX 3013 | -10/Exiles | Met EX-BIN 3031 | -10/Exiles | Aligned with FarCom system 3033 | -10/Exiles | Given EX-Vault access code 3065 | -10/Exiles | Opened EX-Vault 3073 | -10/Exiles | Found Flying Fortress v7 3100 | -10/Exiles | Warned to stay clear of 0b10 Research branches 3136 | -10/Exiles | Met EX-DEC 3246 | -10/Exiles | Discovered new exit (range 14) 3261 | -10/Exiles | Left Exiles lab with Flying Fortress v7 3261 | -10/Exiles | Entered Mines 3380 | -9/Mines | Assembled infested the area 3400 | -9/Mines | Core integrity fell below 50% 3668 | -9/Mines | Received a Mining Laser from a helpful Derelict 3855 | -9/Mines | Discovered new exit (range 11) 3924 | -9/Mines | Discovered new exit (range 10) 3983 | -9/Mines | Entered Materials 3983 | -8/Materials | Evolved 4 slots: Propulsion x2, Utility x2 4291 | -8/Materials | Build established: Skirmisher 5285 | -8/Materials | Build established: Scavenger-Mutant 5699 | -8/Materials | Lost 3 parts (2n1w) 5859 | -8/Materials | Learned 2 Storage zone layouts 5997 | -8/Materials | Learned 4 Factory zone layouts 6050 | -8/Materials | Identified exit to Factory 6091 | -8/Materials | Learned Storage trap positions 6120 | -8/Materials | Learned Factory stockpile data 6706 | -8/Materials | Build established: Mutant 6783 | -8/Materials | First assault squad dispatched 7552 | -8/Materials | Entered Factory 7552 | -7/Factory | Evolved 2 slots: Propulsion x1, Utility x1 7553 | -7/Factory | Identified exit to Lower Caves 7911 | -7/Factory | Repaired Lgt. Armor Plating? 8124 | -7/Factory | Manually triggered Chute Trap 8124 | -7/Factory | Sucked down chute 8124 | -7/Factory | Entered Waste 8124 | -7/Waste | The area was eerily silent 8179 | -7/Waste | Discovered new exit (range 12) 8199 | -7/Waste | Entered Factory 8311 | -7/Factory | Fabricated Imp. System Shield (x1) 8544 | -7/Factory | Repaired Imp. Propulsion Shielding 8796 | -7/Factory | Repaired Rocket Launcher 8841 | -7/Factory | Repaired Hyb. Deuterium Engine 8954 | -7/Factory | Entered Lower Caves 8965 | -7/Lower Caves | Encountered a Warlord checkpoint 9075 | -7/Lower Caves | Discovered new exit (range 6) 9096 | -7/Lower Caves | Entered another Lower Caves area 9124 | -7/Lower Caves | Learned location of Zion (-6) 9351 | -7/Lower Caves | Discovered new exit (range 8) 9358 | -7/Lower Caves | Entered Data Miner 9358 | -7/Data Miner | Discovered new exit (range 6) 9368 | -7/Data Miner | Met Data Miner 9382 | -7/Data Miner | Learned location of Section 7 (-2) 9382 | -7/Data Miner | Acquired the access code to Warlord's prototype stash 9391 | -7/Data Miner | Received God Mode back door access code from Data Miner 9402 | -7/Data Miner | Entered Proximity Caves 9494 | -6/Proximity Caves | Attracted the attention of an 0b10 checkpoint 9497 | -6/Proximity Caves | Learned Factory security intel 9570 | -6/Proximity Caves | Discovered new exit (range 7) 9573 | -6/Proximity Caves | Entered Factory 9573 | -6/Factory | Evolved 2 slots: Propulsion x1, Utility x1 9763 | -6/Factory | Identified exit to Lower Caves 9777 | -6/Factory | Found Hvy. Insulated Plating 9876 | -6/Factory | Build established: Hacker-Mutant 9994 | -6/Factory | Repaired Imp. Propulsion Shielding 10110 | -6/Factory | Repaired Hvy. Insulated Plating 10138 | -6/Factory | Entered Lower Caves 10170 | -6/Lower Caves | Encountered a Warlord checkpoint 10261 | -6/Lower Caves | Discovered new exit (range 12) 10267 | -6/Lower Caves | Entered another Lower Caves area 10277 | -6/Lower Caves | Discovered new exit (range 5) 10316 | -6/Lower Caves | Found DCF Scrap (11 items) 10343 | -6/Lower Caves | Attracted the attention of an 0b10 checkpoint 10356 | -6/Lower Caves | Discovered new exit (range 17) 10362 | -6/Lower Caves | Entered Zion 10403 | -6/Zion | Discovered new exit (range 10) 10410 | -6/Zion | Found Prototype Device 10410 | -6/Zion | Identified Phasing AFG 10439 | -6/Zion | Visited the Megawrench Repair Shop 10439 | -6/Zion | Megawrench repaired 10 parts 10486 | -6/Zion | Learned Factory emergency access door positions 10505 | -6/Zion | Learned 8 Factory zone layouts 10543 | -6/Zion | Given A8's code to call for help 10655 | -6/Zion | Entered Proximity Caves 10738 | -5/Proximity Caves | Learned 8 Factory zone layouts 10757 | -5/Proximity Caves | Discovered new exit (range 9) 10775 | -5/Proximity Caves | Entered Factory 10775 | -5/Factory | Evolved 2 slots: Utility x2 10776 | -5/Factory | Identified exit to Upper Caves 10776 | -5/Factory | Identified exit to Factory 11185 | -5/Factory | Fabricated Combat Drone Bay? 11211 | -5/Factory | Build established: Hacker-Sprinter 11286 | -5/Factory | Discovered exit to Factory (range 9) 11317 | -5/Factory | Fabricated Adv. Hacking Suite? 11357 | -5/Factory | Discovered exit to Factory (range 5) 11433 | -5/Factory | Learned 12 Research zone layouts 11439 | -5/Factory | Repaired Imp. Propulsion Shielding 11491 | -5/Factory | Repaired Hvy. Insulated Plating 11492 | -5/Factory | Learned Extension security intel 11512 | -5/Factory | Fabricated Adv. Reaction Control System (x2) 11522 | -5/Factory | Entered Upper Caves 11534 | -5/Upper Caves | Learned location of Warlord (-4) 11593 | -5/Upper Caves | Spotted B-75 Beast 11604 | -5/Upper Caves | Learned 4 Factory zone layouts 11665 | -5/Upper Caves | Discovered new exit (range 13) 11669 | -5/Upper Caves | Entered another Upper Caves area 11706 | -5/Upper Caves | Spotted B-75 Beast 11714 | -5/Upper Caves | Acquired the password to a Derelict Tinkerer's latest research 11759 | -5/Upper Caves | Discovered new exit (range 8) 11762 | -5/Upper Caves | Entered Zhirov 11762 | -5/Zhirov | Discovered new exit (range 3) 11768 | -5/Zhirov | Met Zhirov 11779 | -5/Zhirov | Learned location of Quarantine (-3) 11779 | -5/Zhirov | Learned location of Testing (-2) 11779 | -5/Zhirov | Learned location of Command (-1) 11781 | -5/Zhirov | Zhirov requested help retrieving the SGEMP Prototype 11788 | -5/Zhirov | Found Alien Artifact 11793 | -5/Zhirov | Found Alien Artifact 11793 | -5/Zhirov | Identified Integrated Dissipator 11793 | -5/Zhirov | Installed Integrated Dissipator, increased core heat dissipation (+20) 11815 | -5/Zhirov | Entered Proximity Caves 11847 | -4/Proximity Caves | Learned Research stockpile data 11904 | -4/Proximity Caves | Discovered exit to Factory (range 8) 11906 | -4/Proximity Caves | Entered Factory 11906 | -4/Factory | Evolved 2 slots: Utility x2 11976 | -4/Factory | Identified exit to Upper Caves 11976 | -4/Factory | Identified exit to Extension 11976 | -4/Factory | Identified exit to Armory 12002 | -4/Factory | Fabricated Assault Drone Bay? 12240 | -4/Factory | Spotted B-86 Titan 12343 | -4/Factory | Repaired Hvy. Insulated Plating 12417 | -4/Factory | Repaired Hyb. Deuterium Engine 12436 | -4/Factory | Identified Transdimensional Reconstructor 12466 | -4/Factory | Repaired Imp. Surge Thruster 12637 | -4/Factory | Spotted B-86 Titan 13140 | -4/Factory | Fabricated Y-64 Sentinel? 13278 | -4/Factory | Entered Extension 13360 | -4/Extension | Disrupted transfer network 13419 | -4/Extension | Rescued a captive Derelict 13568 | -4/Extension | Build established: Hacker-Mutant 13626 | -4/Extension | Rescued A7 13762 | -4/Extension | Rescued a captive Derelict 13763 | -4/Extension | Rescued a captive Derelict 13782 | -4/Extension | Rescued a captive Derelict 13801 | -4/Extension | Rescued a captive Derelict 13810 | -4/Extension | Rescued a captive Derelict 13813 | -4/Extension | Rescued a captive Derelict 14167 | -4/Extension | Spotted B-86 Titan 14180 | -4/Extension | Destroyed B-86 Titan 14218 | -4/Extension | Allies destroyed B-86 Titan 14252 | -4/Extension | Lost 6 allies 14325 | -4/Extension | Discovered new exit (range 4) 14486 | -4/Extension | Identified exit to Cetus 14736 | -4/Extension | Rescued a captive Derelict 14757 | -4/Extension | Rescued a captive Derelict 14862 | -4/Extension | Rescued a captive Derelict 14868 | -4/Extension | Rescued a captive Derelict 14876 | -4/Extension | Rescued a captive Derelict 14956 | -4/Extension | Rescued a captive Derelict 15028 | -4/Extension | First assault squad dispatched 15256 | -4/Extension | Lost 4 allies 15679 | -4/Extension | Found Prototype Protection 15689 | -4/Extension | Identified Med. Regenerative Plating 15696 | -4/Extension | Incoming assault squad redirected 15724 | -4/Extension | Lost 6 allies 15805 | -4/Extension | Incoming assault squad redirected 15808 | -4/Extension | Incoming assault squad redirected 16154 | -4/Extension | Discovered new exit (range 15) 16192 | -4/Extension | Entered Cetus 16192 | -4/Cetus | Accompanied by 1 ally (A7) 16197 | -4/Cetus | Acquired a Cetus Manufacturing Module code from A7 16216 | -4/Cetus | Spotted Cetus Guard 16218 | -4/Cetus | Spotted Cetus Guard 16220 | -4/Cetus | Spotted Cetus Guard 16221 | -4/Cetus | Destroyed Cetus Guard 16223 | -4/Cetus | Spotted Cetus Guard 16242 | -4/Cetus | Destroyed Cetus Guard 16254 | -4/Cetus | Destroyed Cetus Guard 16266 | -4/Cetus | Destroyed Cetus Guard 16273 | -4/Cetus | Lost 4 parts (1n2u1w) 16276 | -4/Cetus | Extracted ID and sensor layout for unrecognized location from A7's data core 16381 | -4/Cetus | Started Cetus Manufacturing Module 16386 | -4/Cetus | Enhanced Grunt warped into view, answering call for help 16391 | -4/Cetus | Enhanced Grunt warped into view, answering call for help 16406 | -4/Cetus | Manufactured an Enhanced Grunt 16431 | -4/Cetus | Manufactured an Enhanced Grunt 16456 | -4/Cetus | Manufactured an Enhanced Grunt 16481 | -4/Cetus | Manufactured an Enhanced Grunt 16506 | -4/Cetus | Manufactured an Enhanced Grunt 16566 | -4/Cetus | Discovered new exit (range 15) 16591 | -4/Cetus | Entered Archives 16591 | -4/Archives | Accompanied by 7 allies 16602 | -4/Archives | Build established: Hacker-Skirmisher 16658 | -4/Archives | Discovered new exit (range 16) 16673 | -4/Archives | Discovered new exit (range 16) 16687 | -4/Archives | Unable to access archive contents 16695 | -4/Archives | Discovered new exit (range 15) 17074 | -4/Archives | Entered Hub_04(d) 17074 | -4/Hub_04(d) | Accompanied by 7 allies 17213 | -4/Hub_04(d) | Identified exit to Research 17213 | -4/Hub_04(d) | Network Hub disabled 17254 | -4/Hub_04(d) | Spotted Lightning 17266 | -4/Hub_04(d) | Spotted Lightning 17267 | -4/Hub_04(d) | Spotted Lightning 17272 | -4/Hub_04(d) | Network Hub disabled 17285 | -4/Hub_04(d) | Entered Research 17285 | -3/Research | Evolved 2 slots: Propulsion x1, Utility x1 17286 | -3/Research | Identified exit to Research 17344 | -3/Research | Identified exit to Quarantine 17350 | -3/Research | Spotted B-86 Titan 17434 | -3/Research | Central database locked down 17526 | -3/Research | Build established: Hacker-Sprinter 17668 | -3/Research | Fabricated Cld. Field Propulsion Drive? 17785 | -3/Research | Search patrols dispatched 17912 | -3/Research | Warped through subspace 18035 | -3/Research | Search patrols dispatched 18260 | -3/Research | Build established: Hacker-Ninja 18380 | -3/Research | Entered another Research area 18380 | -2/Research | Evolved 2 slots: Utility x2 18416 | -2/Research | Repaired Impulse Thruster Array 18471 | -2/Research | Identified exit to Testing 18634 | -2/Research | Repaired Imp. Surge Thruster 18669 | -2/Research | Repaired Mic. Antimatter Reactor 18705 | -2/Research | Repaired Hvy. Pick 18723 | -2/Research | Found Prototype Launcher 18723 | -2/Research | Identified Ragnarok Missile Launcher 18813 | -2/Research | Entered Testing 18814 | -2/Testing | Maximum security lockdown engaged 18842 | -2/Testing | Lost 9 parts (1p4n4u) 18931 | -2/Testing | Self-destructed Last Messages --------------- 18815_ ALERT: Machine network offline. 18816_ ALERT: Performing unscheduled system reset. 18817_ ALERT: Lockdown in effect, collecting threat data. 18818_ FARCOM_MSG: For science! 18823_ Acquired Prototype Flight Unit. 18823_ Identified Exp. Q-thruster. 18875_ Acquired Imp. Q-thruster. 18879_ Repair Station disabled. 18894_ Acquired Prototype Flight Unit. 18914_ ALERT: Assault forces dispatched. 18918_ Dropped Rocket Launcher. 18919_ Acquired Prototype Flight Unit. 18928_ Penetrated by Slug. 18928_ Imp. Hacking Suite destroyed. 18928_ Slug penetrates Wall. 18929_ ZU=IES8YBDHT5BE S8>DURMR23X23ZZL4P 18931_ Slug penetrates Wall. 18931_ Impulse Thruster Array destroyed. Map ----- +----------------------------------------------------+ | #????????????????????????????????????? | | ####+############???###########??????????????????? | | ## + #???# ] #??????????????????? | | # # #???# = #??????????????????? | | # # #???# #?#????????????????? | | + + #???# #??????????????????? | | # # ##### #??????????????????? | | # # + + ##???######????????? | | ## # "#### #????# #????????? | | # ##??# #????# #?#??????? | | ###########???#####+########## #????????? | | """ #??????????????# #????????? | | "T" #?????#######??# #????????? | | #?????#"""""#??# #????????? | | #????##""T""#### #????????? | | #????# # ######+########????????? | | #????# # #?# #???????????? | | ###### # #?# !!! #???????#???? | | + + #?# !! #??#????????? | | ###### # #?# !! #???????????? | | = #????# ] # #?# #???????????? | | ! #????# * # #?# "" "" #???????????? | | #????# # #?# ""R"" #???????????? | | #????########### #?# """" ##??????????? | | #???????????# #?# #????#??????? | | #???????????# Y @#?##########???????????? | | #?#?????????# Y #??????????#???????????? | | #######???????????####Y #??????????????????????? | | ???????????????#?????# #??????????????????????? | | ?????????#???????????# #??????????????????????? | | ?????????????????????# ^ #??????????????????????? | | ???????????#?????????# #??????????????????????? | | #########????????????# w#??????????????????????? | | #"""T"""#####????????# #??????????????????????? | | #????????# #??????????????????????? | | """"" """ #????????# #??????????????????????? | | ""T"" """ #????????# #??????????????????????? | | """ #????????# #??????????????????????? | | #????????# ###+######?????????????? | | ###+#########????????# ????? | | ??# #?? #?????????# ????? | | #?# #?? ""#?????????# ????? | | ??# #? ""#?????????# ?????? | | ??# #? T"#?????????############### ####?????? | | ### # [ ""#?????????????????????????? #????????? | | # ""#?????????????????????????????????????? | | + #?????????????????????????????????????? | | ##### """ #?????????????????????????????????????? | | ###?? """ #????????????????????????? ???????????? | | #???""" #?????????????????????????????????????? | +----------------------------------------------------+ Best States ------------- Heat Dissipation 101 Energy Generation 21 Energy Capacity 800 Matter Stores 300 Matter Capacity 300 Sight Range 20 Robot Scan Range 16 Terrain Scan Range 16 Terrain Scan Density 10 ECM Strength 1 Jamming Range 12 Armor Coverage 1350 Resistance: EM 30 Core Shielding 30 Propulsion Shielding 66 Evasion (%) 75 Armor Integrity Analysis 30 Recoil Reduction 6 Offensive Hacking 40 Defensive Hacking 12 Item Schematics ----------------- Imp. Flight Unit | -7/Factory | Scanalyzed Hacking Suite | -7/Factory | Scanalyzed Rocket Launcher | -7/Factory | Scanalyzed Imp. Light Armor Plating | -7/Factory | Scanalyzed Plasma Cutter | -7/Factory | Scanalyzed ECM Suite | -7/Factory | Scanalyzed Hvy. Particle Gun | -7/Factory | Scanalyzed Transmission Jammer | -7/Factory | Scanalyzed Imp. System Shield | -7/Factory | Hacked Imp. VTOL Module | -7/Factory | Scanalyzed Combat Drone Bay | -7/Data Miner | Free Lgt. Regenerative Plating | -7/Data Miner | Free Cld. Cesium-ion Thruster | -7/Data Miner | Free Exp. Targeting Computer | -7/Data Miner | Free Imp. Lightning Gun | -7/Data Miner | Free Linear Gravjet | -7/Data Miner | Free Adv. Drone Bay | -7/Data Miner | Free Imp. Plasma Cutter | -7/Data Miner | Free Thermic Laser | -7/Data Miner | Free Lrg. Matter Pod | -6/Factory | Extracted Imp. Coolant Injector | -6/Zion | Archive Imp. Core Shielding | -6/Zion | Archive Imp. Proton Missile Launcher | -6/Zion | Archive Antigrav System | -6/Zion | Archive Imp. Antigrav System | -6/Zion | Archive Hyp. Gauss Rifle | -6/Zion | Archive Adv. Cooling System | -6/Zion | Archive Magnetic Acceleration Cannon | -6/Zion | Archive Imp. Medium Treads | -6/Zion | Archive Imp. Focal Shield | -6/Zion | Archive EM Disruption Field | -6/Zion | Archive Point Defense Array | -6/Zion | Archive Adv. Hacking Suite | -5/Factory | Hacked Assault Drone Bay | -5/Zhirov | Free Exp. Heat Sink | -5/Zhirov | Free Exp. Optical Array | -5/Zhirov | Free Imp. Arc Thrower | -5/Zhirov | Free Imp. Surge Thruster | -4/Factory | Scanalyzed Imp. Medium Armor Plating | -4/Factory | Scanalyzed Nuclear Pulse Array | -4/Factory | Scanalyzed Enh. Force Rifle | -4/Factory | Scanalyzed Exp. Hacking Suite | -3/Research | Hacked Cld. Field Propulsion Drive | -3/Research | Hacked Structural Scanner | -3/Research | Hacked Robot Schematics ------------------ G-50 Soldier | -7/Data Miner | Free A-15 Conveyor | -7/Data Miner | Free Y-54 Guardian | -7/Data Miner | Free L-41 Fighter | -7/Data Miner | Free S-27 Virus | -7/Data Miner | Free B-60 Warrior | -7/Data Miner | Free B-48 Gladiator | -6/Zion | Archive A-02 Transporter | -6/Zion | Archive R-06 Scavenger | -6/Zion | Archive C-57 Dissector | -6/Zion | Archive Fabricated ------------ Imp. System Shield | x1 | -7/Factory Combat Drone Bay | x1 | -5/Factory Adv. Hacking Suite | x1 | -5/Factory Adv. Reaction Control System | x2 | -5/Factory | Preloaded Assault Drone Bay | x1 | -4/Factory Y-64 Sentinel | x2 | -4/Factory | Preloaded Cld. Field Propulsion Drive | x1 | -3/Research Alien Tech Used ----------------- Integrated Dissipator Transdimensional Reconstructor Achievements -------------- None Challenges ------------ None Game ------ Seed IonicMakeshiftBuckler Manual? 0 Play Time 04:15:25 Cumulative 169.3 hours Start 2024.12.18 @ 13:27:08 End 2024.12.21 @ 18:22:49 Sessions 7 Manual Loads 0 Difficulty Rogue Special Mode None Game No. 83 Rogue 20 Adventurer 63 Explorer 0 Win Type - Total 8 Types 7/0/0/1/0/0/0/0/0 Lore% 70 Gallery% 69 Achievement% 57 Wizard Run 0 Options --------- Layout 1 ASCII 0 Keyboard 1 Movement Numpad Keybinds 0 Fullscreen 2 Font 24/Terminus Map View 50x35 Zoom Use 0% Tactical HUD 1 Map Filters NONE Filters NONE Steam 1 RUN: bf277800-ce14-4007-9abb-0a8e997f2040